{"text_format":"1","workbook":"xlsx","n_sheets":1,"sheets":["Keg.1"],"not_rendered":{"charts":0,"images":0,"macros":1,"external_links":0,"defined_names":1,"comments":1,"pivot_tables":0},"unopened":[],"bounds":{"document_bytes":16777216,"sheet_cells":100000,"rows_first":2000,"rows_last":500,"rows_between":2000,"halvings":0,"cell_chars":16384,"cell_head_chars":4096},"cells_cut":0,"cells_raw":0,"read":"whole","date_system":"1900"}

{"sheet":"Keg.1","index":0,"n_rows":54,"n_cols":7,"rows_kept":54,"cut":false,"hidden":false,"merged":[[53,3,53,6],[0,1,0,6],[2,1,2,6],[1,1,1,6],[4,4,5,4],[4,5,5,5],[4,6,5,6],[4,3,5,3],[4,2,5,2],[4,1,5,1],[42,1,42,5],[44,1,44,5],[46,3,46,6],[43,1,43,5],[47,3,47,6],[52,3,52,6]]}
[null,"DAFTAR KUANTITAS DAN HARGA"]
[null,"PEKERJAAN ...................."]
[null,"DESA ...................."]
[]
[null,"No","Uraian Barang","Satuan","Volume","Harga Satuan (Rp)","Jumlah Harga (Rp)"]
[]
[null,null,null,null,null,null,{"$f":"(E7*F7)","v":0}]
[null,null,null,null,null,null,{"$f":"(E8*F8)","v":0}]
[null,null,null,null,null,null,0]
[null,null,null,null,null,null,0]
[null,null,null,null,null,null,0]
[null,null,null,null,null,null,0]
[null,null,null,null,null,null,0]
[null,null,null,null,null,null,0]
[null,null,null,null,null,null,0]
[null,null,null,null,null,null,0]
[null,null,null,null,null,null,0]
[null,null,null,null,null,null,0]
[null,null,null,null,null,null,{"$f":"(E19*F19)","v":0}]
[null,null,null,null,null,null,0]
[null,null,null,null,null,null,0]
[null,null,null,null,null,null,0]
[null,null,null,null,null,null,0]
[null,null,null,null,null,null,0]
[null,null,null,null,null,null,0]
[null,null,null,null,null,null,0]
[null,null,null,null,null,null,0]
[null,null,null,null,null,null,0]
[null,null,null,null,null,null,0]
[null,null,null,null,null,null,0]
[null,null,null,null,null,null,0]
[null,null,null,null,null,null,0]
[null,null,null,null,null,null,0]
[null,null,null,null,null,null,0]
[null,null,null,null,null,null,0]
[null,null,null,null,null,null,0]
[null,null,null,null,null,null,0]
[null,null,null,null,null,null,0]
[null,null,null,null,null,null,0]
[null,null,null,null,null,null,0]
[null,null,null,null,null,null,0]
[null,null,null,null,null,null,0]
[null,"Jumlah (Sebelum PPN)",null,null,null,null,{"$f":"SUM(G7:G42)","v":0}]
[null,"PPN (11%)",null,null,null,null,{"$f":"(G43)*11%","v":0}]
[null,"Jumlah total setelah PPN",null,null,null,null,{"$f":"(G43+G44)","v":0}]
[]
[null,null,null,"Kepala Seksi/Kepala Urusan …....................."]
[]
[]
[]
[]
[]
[null,null,null,"tanda tangan,"]
[null,null,null,"nama lengkap"]